[Event "Titled Tuesday Blitz February 07 Late 2023"]
[White "Fedoseev, Vladimir"]
[Black "Bortnyk, Olexandr"]
[WhiteFideId "24130737"]
[BlackFideId "14120828"]
[WhiteElo "2680"]
[BlackElo "2605"]
[Result "1/2-1/2"]
[Round "07"]
[TimeControl "180+2"]
[Date "2023.02.07"]
[WhiteClock "0:00:17"]
[BlackClock "0:00:07"]

1. Nf3 {[%clk 0:03:00]}  Nf6 {[%clk 0:03:00]} 2. d4 {[%clk 0:03:00]}  b6 {[%clk 0:03:00]} 3. g3 {[%clk 0:02:58]}  Bb7 {[%clk 0:03:00]} 4. Bg2 {[%clk 0:02:59]}  g6 {[%clk 0:03:01]} 5. O-O {[%clk 0:02:57]}  Bg7 {[%clk 0:03:01]} 6. c4 {[%clk 0:02:53]}  O-O {[%clk 0:03:01]} 7. Qc2 {[%clk 0:02:53]}  Be4 {[%clk 0:02:55]} 8. Qd1 {[%clk 0:02:45]}  Bb7 {[%clk 0:02:50]} 9. Qc2 {[%clk 0:02:44]}  Be4 {[%clk 0:02:50]} 10. Qb3 {[%clk 0:02:32]}  Nc6 {[%clk 0:02:47]} 11. Nbd2 {[%clk 0:02:32]}  d5 {[%clk 0:02:38]} 12. Qa4 {[%clk 0:02:23]}  Qd7 {[%clk 0:02:10]} 13. Re1 {[%clk 0:01:46]}  Bxf3 {[%clk 0:01:49]} 14. Nxf3 {[%clk 0:01:43]}  Nxd4 {[%clk 0:01:42]} 15. Qxd7 {[%clk 0:01:42]}  Nxf3+ {[%clk 0:01:27]} 16. exf3 {[%clk 0:01:35]}  Nxd7 {[%clk 0:01:28]} 17. Rxe7 {[%clk 0:01:34]}  Rad8 {[%clk 0:01:15]} 18. cxd5 {[%clk 0:01:31]}  Rfe8 {[%clk 0:01:01]} 19. Rxe8+ {[%clk 0:01:05]}  Rxe8 {[%clk 0:01:00]} 20. Kf1 {[%clk 0:01:05]}  Nf6 {[%clk 0:00:52]} 21. d6 {[%clk 0:00:57]}  cxd6 {[%clk 0:00:50]} 22. Bd2 {[%clk 0:00:57]}  Nd7 {[%clk 0:00:45]} 23. Rb1 {[%clk 0:00:57]}  Rc8 {[%clk 0:00:44]} 24. Rc1 {[%clk 0:00:55]}  Rxc1+ {[%clk 0:00:42]} 25. Bxc1 {[%clk 0:00:56]}  Kf8 {[%clk 0:00:40]} 26. f4 {[%clk 0:00:53]}  f5 {[%clk 0:00:38]} 27. Ke2 {[%clk 0:00:52]}  Ke7 {[%clk 0:00:38]} 28. Kd3 {[%clk 0:00:48]}  Nc5+ {[%clk 0:00:22]} 29. Kc4 {[%clk 0:00:48]}  Kd7 {[%clk 0:00:20]} 30. b4 {[%clk 0:00:43]}  Na6 {[%clk 0:00:05]} 31. Be3 {[%clk 0:00:34]}  Nc7 {[%clk 0:00:05]} 32. a4 {[%clk 0:00:34]}  Ke6 {[%clk 0:00:03]} 33. a5 {[%clk 0:00:19]}  d5+ {[%clk 0:00:04]} 34. Kb3 {[%clk 0:00:17]}  d4 {[%clk 0:00:04]} 35. Bd2 {[%clk 0:00:16]}  Kd6 {[%clk 0:00:02]} 36. axb6 {[%clk 0:00:15]}  axb6 {[%clk 0:00:03]} 37. Kc4 {[%clk 0:00:16]}  b5+ {[%clk 0:00:03]} 38. Kd3 {[%clk 0:00:16]}  Nd5 {[%clk 0:00:02]} 39. Bf3 {[%clk 0:00:15]}  h5 {[%clk 0:00:02]} 40. Be2 {[%clk 0:00:14]}  Bf6 {[%clk 0:00:03]} 41. Kc2 {[%clk 0:00:15]}  Kc6 {[%clk 0:00:03]} 42. Bd3 {[%clk 0:00:15]}  Be7 {[%clk 0:00:03]} 43. Kb3 {[%clk 0:00:15]}  Bf6 {[%clk 0:00:03]} 44. h3 {[%clk 0:00:15]}  Ne7 {[%clk 0:00:04]} 45. Be2 {[%clk 0:00:15]}  Nd5 {[%clk 0:00:04]} 46. Bf3 {[%clk 0:00:16]}  Kd6 {[%clk 0:00:04]} 47. g4 {[%clk 0:00:16]}  hxg4 {[%clk 0:00:05]} 48. hxg4 {[%clk 0:00:17]}  Bg7 {[%clk 0:00:04]} 49. gxf5 {[%clk 0:00:17]}  gxf5 {[%clk 0:00:04]} 50. Be2 {[%clk 0:00:18]}  Kc6 {[%clk 0:00:05]} 51. Bd3 {[%clk 0:00:19]}  Ne7 {[%clk 0:00:05]} 52. Kc2 {[%clk 0:00:18]}  Bh6 {[%clk 0:00:04]} 53. Kd1 {[%clk 0:00:18]}  Nd5 {[%clk 0:00:02]} 54. Bxf5 {[%clk 0:00:18]}  Nxf4 {[%clk 0:00:01]} 55. Be4+ {[%clk 0:00:19]}  Kd6 {[%clk 0:00:02]} 56. Kc2 {[%clk 0:00:19]}  Bg5 {[%clk 0:00:02]} 57. Kb3 {[%clk 0:00:18]}  Ne6 {[%clk 0:00:02]} 58. Be1 {[%clk 0:00:16]}  Bf4 {[%clk 0:00:03]} 59. Bd3 {[%clk 0:00:16]}  Kc6 {[%clk 0:00:03]} 60. Kc2 {[%clk 0:00:16]}  Ng5 {[%clk 0:00:03]} 61. Be2 {[%clk 0:00:16]}  Ne6 {[%clk 0:00:03]} 62. Kd3 {[%clk 0:00:16]}  Bc1 {[%clk 0:00:02]} 63. Ke4 {[%clk 0:00:16]}  Bb2 {[%clk 0:00:02]} 64. Bd3 {[%clk 0:00:16]}  Nc7 {[%clk 0:00:01]} 65. f4 {[%clk 0:00:15]}  Nd5 {[%clk 0:00:01]} 66. Bxb5+ {[%clk 0:00:15]}  Kxb5 {[%clk 0:00:01]} 67. Kxd5 {[%clk 0:00:16]}  Bc3 {[%clk 0:00:02]} 68. Bf2 {[%clk 0:00:13]}  d3 {[%clk 0:00:02]} 69. Be3 {[%clk 0:00:13]}  d2 {[%clk 0:00:03]} 70. Bxd2 {[%clk 0:00:13]}  Bxd2 {[%clk 0:00:04]} 71. f5 {[%clk 0:00:13]}  Bxb4 {[%clk 0:00:05]} 72. f6 {[%clk 0:00:13]}  Bf8 {[%clk 0:00:06]} 73. Ke6 {[%clk 0:00:14]}  Ba3 {[%clk 0:00:06]} 74. Kf7 {[%clk 0:00:15]}  Bb4 {[%clk 0:00:06]} 75. Kg6 {[%clk 0:00:16]}  Kc6 {[%clk 0:00:07]} 76. f7 {[%clk 0:00:17]}  Kd7 {[%clk 0:00:08]} 77. f8=Q {[%clk 0:00:17]}  Bxf8 {[%clk 0:00:07]} 1/2-1/2


[Site "https://www.chess.com"]

[Event "Titled Tuesday Blitz February 07 Late 2023"]
[White "Suleymanli, Aydin"]
[Black "So, Wesley"]
[WhiteFideId "13413937"]
[BlackFideId "5202213"]
[WhiteElo "2560"]
[BlackElo "2760"]
[Result "0-1"]
[Round "07"]
[TimeControl "180+2"]
[Date "2023.02.07"]
[WhiteClock "0:00:01"]
[BlackClock "0:00:20"]

1. c4 {[%clk 0:03:00]}  e5 {[%clk 0:02:57]} 2. Nc3 {[%clk 0:03:00]}  Bb4 {[%clk 0:02:57]} 3. Qc2 {[%clk 0:02:54]}  Nf6 {[%clk 0:02:56]} 4. Nf3 {[%clk 0:02:53]}  Nc6 {[%clk 0:02:52]} 5. Nd5 {[%clk 0:02:51]}  O-O {[%clk 0:02:51]} 6. a3 {[%clk 0:02:39]}  Bd6 {[%clk 0:02:45]} 7. Nc3 {[%clk 0:02:19]}  Re8 {[%clk 0:02:42]} 8. e3 {[%clk 0:02:12]}  b6 {[%clk 0:02:33]} 9. Bd3 {[%clk 0:02:03]}  Bb7 {[%clk 0:02:28]} 10. Ne4 {[%clk 0:02:02]}  Nxe4 {[%clk 0:02:26]} 11. Bxe4 {[%clk 0:02:02]}  g6 {[%clk 0:02:24]} 12. d3 {[%clk 0:01:46]}  a5 {[%clk 0:02:14]} 13. g4 {[%clk 0:01:42]}  Bf8 {[%clk 0:02:08]} 14. h4 {[%clk 0:01:41]}  a4 {[%clk 0:02:01]} 15. Bd2 {[%clk 0:01:37]}  Na5 {[%clk 0:01:59]} 16. Bxa5 {[%clk 0:01:26]}  Bxe4 {[%clk 0:01:58]} 17. dxe4 {[%clk 0:01:26]}  Rxa5 {[%clk 0:01:58]} 18. Rd1 {[%clk 0:01:15]}  d6 {[%clk 0:01:51]} 19. Rd5 {[%clk 0:01:04]}  Qd7 {[%clk 0:01:23]} 20. Rg1 {[%clk 0:00:42]}  Raa8 {[%clk 0:01:16]} 21. h5 {[%clk 0:00:37]}  Rab8 {[%clk 0:01:10]} 22. hxg6 {[%clk 0:00:27]}  hxg6 {[%clk 0:01:11]} 23. Ke2 {[%clk 0:00:25]}  b5 {[%clk 0:01:06]} 24. c5 {[%clk 0:00:23]}  b4 {[%clk 0:01:04]} 25. c6 {[%clk 0:00:18]}  Qc8 {[%clk 0:00:59]} 26. Qxa4 {[%clk 0:00:17]}  bxa3 {[%clk 0:00:59]} 27. bxa3 {[%clk 0:00:16]}  Ra8 {[%clk 0:00:57]} 28. Qc4 {[%clk 0:00:09]}  Rxa3 {[%clk 0:00:56]} 29. Ng5 {[%clk 0:00:10]}  Qa6 {[%clk 0:00:50]} 30. Rb5 {[%clk 0:00:08]}  Re7 {[%clk 0:00:46]} 31. Rgb1 {[%clk 0:00:08]}  Ra4 {[%clk 0:00:38]} 32. Qd5 {[%clk 0:00:08]}  Ra2+ {[%clk 0:00:35]} 33. Kf3 {[%clk 0:00:08]}  Rc2 {[%clk 0:00:35]} 34. Kg3 {[%clk 0:00:06]}  Bh6 {[%clk 0:00:26]} 35. Rb8+ {[%clk 0:00:05]}  Kg7 {[%clk 0:00:27]} 36. Nf3 {[%clk 0:00:05]}  Qe2 {[%clk 0:00:24]} 37. g5 {[%clk 0:00:01]}  Qxf2+ {[%clk 0:00:24]} 38. Kg4 {[%clk 0:00:02]}  Qg2+ {[%clk 0:00:24]} 39. Kh4 {[%clk 0:00:03]}  Qf2+ {[%clk 0:00:23]} 40. Kg4 {[%clk 0:00:03]}  Qg2+ {[%clk 0:00:23]} 41. Kh4 {[%clk 0:00:03]}  Qxf3 {[%clk 0:00:22]} 42. gxh6+ {[%clk 0:00:04]}  Kf6 {[%clk 0:00:20]} 43. Qe6+ {[%clk 0:00:01]} 0-1


[Site "https://www.chess.com"]

[Event "Titled Tuesday Blitz February 07 Late 2023"]
[White "Salem, A.R. Saleh"]
[Black "Boros, Denes"]
[WhiteFideId "9301348"]
[BlackFideId "722340"]
[WhiteElo "2677"]
[BlackElo "2406"]
[Result "1-0"]
[Round "07"]
[TimeControl "180+2"]
[Date "2023.02.07"]
[WhiteClock "0:00:10"]
[BlackClock "0:00:12"]

1. d4 {[%clk 0:02:56]}  Nf6 {[%clk 0:03:00]} 2. c4 {[%clk 0:02:55]}  e6 {[%clk 0:03:00]} 3. Nc3 {[%clk 0:02:56]}  Bb4 {[%clk 0:03:01]} 4. a3 {[%clk 0:02:57]}  Bxc3+ {[%clk 0:02:57]} 5. bxc3 {[%clk 0:02:58]}  a6 {[%clk 0:02:52]} 6. f3 {[%clk 0:02:57]}  b5 {[%clk 0:02:53]} 7. e4 {[%clk 0:02:57]}  bxc4 {[%clk 0:02:53]} 8. Bxc4 {[%clk 0:02:56]}  d5 {[%clk 0:02:50]} 9. Bd3 {[%clk 0:02:56]}  c5 {[%clk 0:02:44]} 10. e5 {[%clk 0:02:56]}  Nfd7 {[%clk 0:02:43]} 11. Ne2 {[%clk 0:02:54]}  a5 {[%clk 0:02:40]} 12. O-O {[%clk 0:02:49]}  Ba6 {[%clk 0:02:41]} 13. Bxa6 {[%clk 0:02:32]}  Nxa6 {[%clk 0:02:33]} 14. Ng3 {[%clk 0:02:28]}  O-O {[%clk 0:02:29]} 15. f4 {[%clk 0:02:16]}  f5 {[%clk 0:02:29]} 16. Be3 {[%clk 0:01:56]}  Nb6 {[%clk 0:02:22]} 17. Kh1 {[%clk 0:01:45]}  Nc4 {[%clk 0:02:18]} 18. Bg1 {[%clk 0:01:41]}  Rb8 {[%clk 0:02:11]} 19. Nh5 {[%clk 0:01:19]}  cxd4 {[%clk 0:01:51]} 20. Bxd4 {[%clk 0:01:08]}  Rb2 {[%clk 0:01:44]} 21. Rf3 {[%clk 0:00:55]}  Nc7 {[%clk 0:01:29]} 22. Rg3 {[%clk 0:00:54]}  Ne8 {[%clk 0:01:29]} 23. Qf3 {[%clk 0:00:29]}  Kh8 {[%clk 0:01:14]} 24. Rg1 {[%clk 0:00:22]}  Qe7 {[%clk 0:00:45]} 25. a4 {[%clk 0:00:21]}  Qb7 {[%clk 0:00:35]} 26. Rh3 {[%clk 0:00:19]}  Nd2 {[%clk 0:00:27]} 27. Qg3 {[%clk 0:00:14]}  Qf7 {[%clk 0:00:12]} 28. Qh4 {[%clk 0:00:14]}  g6 {[%clk 0:00:12]} 29. Nf6 {[%clk 0:00:14]}  Nxf6 {[%clk 0:00:12]} 30. exf6 {[%clk 0:00:14]}  Ne4 {[%clk 0:00:12]} 31. Qxh7+ {[%clk 0:00:10]} 1-0


[Site "https://www.chess.com"]

[Event "Titled Tuesday Blitz February 07 Late 2023"]
[White "Godzwon, Iwo"]
[Black "Chigaev, Maksim"]
[WhiteFideId "21802483"]
[BlackFideId "4108116"]
[WhiteElo "2394"]
[BlackElo "2628"]
[Result "0-1"]
[Round "07"]
[TimeControl "180+2"]
[Date "2023.02.07"]
[WhiteClock "0:00:02"]
[BlackClock "0:00:06"]

1. e4 {[%clk 0:03:00]}  c5 {[%clk 0:02:59]} 2. Nf3 {[%clk 0:03:00]}  e6 {[%clk 0:02:55]} 3. d4 {[%clk 0:03:00]}  cxd4 {[%clk 0:02:56]} 4. Nxd4 {[%clk 0:03:01]}  Nf6 {[%clk 0:02:57]} 5. Nc3 {[%clk 0:03:01]}  Nc6 {[%clk 0:02:57]} 6. Ndb5 {[%clk 0:03:01]}  d6 {[%clk 0:02:57]} 7. Bf4 {[%clk 0:03:01]}  e5 {[%clk 0:02:57]} 8. Bg5 {[%clk 0:03:02]}  a6 {[%clk 0:02:58]} 9. Na3 {[%clk 0:02:58]}  b5 {[%clk 0:02:58]} 10. Nd5 {[%clk 0:02:59]}  Be7 {[%clk 0:02:56]} 11. Bxf6 {[%clk 0:02:59]}  Bxf6 {[%clk 0:02:57]} 12. c3 {[%clk 0:03:00]}  Ne7 {[%clk 0:02:57]} 13. Nxf6+ {[%clk 0:02:59]}  gxf6 {[%clk 0:02:57]} 14. Bd3 {[%clk 0:02:59]}  Bb7 {[%clk 0:02:56]} 15. Qe2 {[%clk 0:02:47]}  d5 {[%clk 0:02:49]} 16. O-O-O {[%clk 0:02:40]}  Qc7 {[%clk 0:02:28]} 17. Kb1 {[%clk 0:02:35]}  O-O-O {[%clk 0:02:20]} 18. Rhe1 {[%clk 0:02:32]}  Kb8 {[%clk 0:02:20]} 19. Nc2 {[%clk 0:02:29]}  f5 {[%clk 0:02:16]} 20. exf5 {[%clk 0:02:17]}  e4 {[%clk 0:02:16]} 21. Nd4 {[%clk 0:02:17]}  Qxh2 {[%clk 0:02:06]} 22. f3 {[%clk 0:02:15]}  Rhe8 {[%clk 0:01:51]} 23. fxe4 {[%clk 0:02:10]}  dxe4 {[%clk 0:01:49]} 24. Bc2 {[%clk 0:02:00]}  Nd5 {[%clk 0:01:42]} 25. Rh1 {[%clk 0:01:53]}  Qg3 {[%clk 0:01:24]} 26. Rh3 {[%clk 0:01:48]}  Qg7 {[%clk 0:01:17]} 27. g3 {[%clk 0:01:48]}  e3 {[%clk 0:01:08]} 28. Rdh1 {[%clk 0:01:47]}  h6 {[%clk 0:01:01]} 29. a4 {[%clk 0:01:30]}  b4 {[%clk 0:00:59]} 30. Rxh6 {[%clk 0:01:27]}  Rc8 {[%clk 0:00:44]} 31. Bb3 {[%clk 0:01:06]}  bxc3 {[%clk 0:00:34]} 32. Bxd5 {[%clk 0:01:06]}  Qxd4 {[%clk 0:00:18]} 33. Bxb7 {[%clk 0:00:57]}  Qd2 {[%clk 0:00:05]} 34. Bxa6 {[%clk 0:00:07]}  c2+ {[%clk 0:00:05]} 35. Ka2 {[%clk 0:00:07]}  Qxe2 {[%clk 0:00:05]} 36. Bxe2 {[%clk 0:00:07]}  c1=Q {[%clk 0:00:05]} 37. Rxc1 {[%clk 0:00:08]}  Rxc1 {[%clk 0:00:06]} 38. Rb6+ {[%clk 0:00:05]}  Kc7 {[%clk 0:00:06]} 39. Rb3 {[%clk 0:00:02]}  Rc2 {[%clk 0:00:06]} 40. Bd3 {[%clk 0:00:03]}  Rd2 {[%clk 0:00:06]} 41. Rc3+ {[%clk 0:00:02]}  Kd8 {[%clk 0:00:07]} 42. Bb5 {[%clk 0:00:02]}  e2 {[%clk 0:00:06]} 0-1


[Site "https://www.chess.com"]

[Event "Titled Tuesday Blitz February 07 Late 2023"]
[White "Ibarra Jerez, Jose Carlos"]
[Black "Ozates, Tuna"]
[WhiteFideId "2226332"]
[BlackFideId "6354521"]
[WhiteElo "2563"]
[BlackElo "2251"]
[Result "1-0"]
[Round "07"]
[TimeControl "180+2"]
[Date "2023.02.07"]
[WhiteClock "0:00:04"]
[BlackClock "0:00:08"]

1. e4 {[%clk 0:03:00]}  c5 {[%clk 0:03:00]} 2. Nc3 {[%clk 0:02:58]}  Nc6 {[%clk 0:03:00]} 3. Nge2 {[%clk 0:02:58]}  d6 {[%clk 0:02:54]} 4. d4 {[%clk 0:02:57]}  cxd4 {[%clk 0:02:55]} 5. Nxd4 {[%clk 0:02:58]}  e5 {[%clk 0:02:56]} 6. Nf3 {[%clk 0:02:56]}  Nf6 {[%clk 0:02:55]} 7. Bg5 {[%clk 0:02:51]}  Be6 {[%clk 0:02:51]} 8. Bxf6 {[%clk 0:02:29]}  Qxf6 {[%clk 0:02:50]} 9. Nd5 {[%clk 0:02:29]}  Qd8 {[%clk 0:02:49]} 10. c3 {[%clk 0:02:30]}  Be7 {[%clk 0:02:49]} 11. Bc4 {[%clk 0:02:29]}  O-O {[%clk 0:02:48]} 12. a4 {[%clk 0:02:27]}  Rc8 {[%clk 0:02:47]} 13. O-O {[%clk 0:02:24]}  Na5 {[%clk 0:02:42]} 14. Ba2 {[%clk 0:02:20]}  Nc4 {[%clk 0:02:41]} 15. Qe2 {[%clk 0:02:19]}  Nb6 {[%clk 0:02:40]} 16. Rfd1 {[%clk 0:02:12]}  Rc5 {[%clk 0:02:09]} 17. Ne3 {[%clk 0:01:49]}  Rc8 {[%clk 0:01:53]} 18. a5 {[%clk 0:01:45]}  Nd7 {[%clk 0:01:52]} 19. Bd5 {[%clk 0:01:34]}  Rb8 {[%clk 0:01:46]} 20. Qc4 {[%clk 0:01:19]}  b5 {[%clk 0:01:32]} 21. Qa2 {[%clk 0:01:11]}  Nc5 {[%clk 0:01:29]} 22. Nxe5 {[%clk 0:00:55]}  Qc8 {[%clk 0:00:40]} 23. Nc6 {[%clk 0:00:48]}  Qxc6 {[%clk 0:00:39]} 24. Bxc6 {[%clk 0:00:47]}  Bxa2 {[%clk 0:00:40]} 25. Rxa2 {[%clk 0:00:47]}  Bg5 {[%clk 0:00:26]} 26. Nf5 {[%clk 0:00:44]}  b4 {[%clk 0:00:24]} 27. h4 {[%clk 0:00:40]}  Bf6 {[%clk 0:00:22]} 28. g3 {[%clk 0:00:31]}  bxc3 {[%clk 0:00:20]} 29. bxc3 {[%clk 0:00:32]}  Bxc3 {[%clk 0:00:19]} 30. Rxd6 {[%clk 0:00:31]}  Rb1+ {[%clk 0:00:18]} 31. Kg2 {[%clk 0:00:31]}  g6 {[%clk 0:00:16]} 32. Ne3 {[%clk 0:00:30]}  Ne6 {[%clk 0:00:12]} 33. a6 {[%clk 0:00:26]}  Rfb8 {[%clk 0:00:10]} 34. Rd7 {[%clk 0:00:24]}  Bd4 {[%clk 0:00:09]} 35. Ng4 {[%clk 0:00:20]}  R8b2 {[%clk 0:00:07]} 36. Rxb2 {[%clk 0:00:20]}  Rxb2 {[%clk 0:00:08]} 37. Bd5 {[%clk 0:00:19]}  Bb6 {[%clk 0:00:05]} 38. Nh6+ {[%clk 0:00:18]}  Kg7 {[%clk 0:00:05]} 39. Rxf7+ {[%clk 0:00:14]}  Kxh6 {[%clk 0:00:05]} 40. Bxe6 {[%clk 0:00:15]}  Re2 {[%clk 0:00:03]} 41. Bd5 {[%clk 0:00:14]}  Rd2 {[%clk 0:00:02]} 42. g4 {[%clk 0:00:13]}  g5 {[%clk 0:00:02]} 43. Rf6+ {[%clk 0:00:13]}  Kg7 {[%clk 0:00:03]} 44. hxg5 {[%clk 0:00:14]}  Be3 {[%clk 0:00:03]} 45. Rf5 {[%clk 0:00:13]}  Kg6 {[%clk 0:00:03]} 46. Rf7 {[%clk 0:00:11]}  Kxg5 {[%clk 0:00:03]} 47. Rxh7 {[%clk 0:00:10]}  Kxg4 {[%clk 0:00:03]} 48. Rf7 {[%clk 0:00:09]}  Bb6 {[%clk 0:00:04]} 49. Be6+ {[%clk 0:00:09]}  Kg5 {[%clk 0:00:04]} 50. Rf5+ {[%clk 0:00:09]}  Kg6 {[%clk 0:00:04]} 51. Bd5 {[%clk 0:00:09]}  Kg7 {[%clk 0:00:04]} 52. Kg3 {[%clk 0:00:10]}  Kg6 {[%clk 0:00:04]} 53. f4 {[%clk 0:00:09]}  Rd3+ {[%clk 0:00:05]} 54. Kg4 {[%clk 0:00:09]}  Rd1 {[%clk 0:00:05]} 55. Rg5+ {[%clk 0:00:09]}  Kh6 {[%clk 0:00:06]} 56. Kf5 {[%clk 0:00:08]}  Ra1 {[%clk 0:00:05]} 57. Bb7 {[%clk 0:00:07]}  Ra5+ {[%clk 0:00:04]} 58. e5 {[%clk 0:00:07]}  Be3 {[%clk 0:00:05]} 59. Rg6+ {[%clk 0:00:07]}  Kh7 {[%clk 0:00:05]} 60. Rg3 {[%clk 0:00:07]}  Bb6 {[%clk 0:00:04]} 61. Be4 {[%clk 0:00:07]}  Kh8 {[%clk 0:00:05]} 62. Bd3 {[%clk 0:00:06]}  Rd5 {[%clk 0:00:04]} 63. Ke6 {[%clk 0:00:05]}  Rd8 {[%clk 0:00:04]} 64. Rh3+ {[%clk 0:00:06]}  Kg8 {[%clk 0:00:04]} 65. Ke7 {[%clk 0:00:05]}  Rd4 {[%clk 0:00:03]} 66. Bf5 {[%clk 0:00:05]}  Rxf4 {[%clk 0:00:03]} 67. Be6+ {[%clk 0:00:06]}  Kg7 {[%clk 0:00:04]} 68. Rg3+ {[%clk 0:00:06]}  Kh6 {[%clk 0:00:04]} 69. Rg2 {[%clk 0:00:05]}  Re4 {[%clk 0:00:04]} 70. Kf6 {[%clk 0:00:05]}  Rf4+ {[%clk 0:00:04]} 71. Bf5 {[%clk 0:00:05]}  Bf2 {[%clk 0:00:03]} 72. Rg6+ {[%clk 0:00:04]}  Kh5 {[%clk 0:00:03]} 73. Rg7 {[%clk 0:00:04]}  Bh4+ {[%clk 0:00:04]} 74. Ke6 {[%clk 0:00:04]}  Ra4 {[%clk 0:00:04]} 75. Rxa7 {[%clk 0:00:04]}  Bf2 {[%clk 0:00:04]} 76. Rh7+ {[%clk 0:00:04]}  Kg5 {[%clk 0:00:03]} 77. Rg7+ {[%clk 0:00:04]}  Kf4 {[%clk 0:00:03]} 78. Bd3 {[%clk 0:00:04]}  Ra5 {[%clk 0:00:03]} 79. Rf7+ {[%clk 0:00:05]}  Ke3 {[%clk 0:00:03]} 80. Bc4 {[%clk 0:00:05]}  Bg3 {[%clk 0:00:04]} 81. Rf5 {[%clk 0:00:04]}  Kd4 {[%clk 0:00:04]} 82. Bf1 {[%clk 0:00:03]}  Bxe5 {[%clk 0:00:05]} 83. Kd7 {[%clk 0:00:03]}  Rd5+ {[%clk 0:00:05]} 84. Kc6 {[%clk 0:00:03]}  Rd6+ {[%clk 0:00:05]} 85. Kb7 {[%clk 0:00:03]}  Kd5 {[%clk 0:00:05]} 86. Bg2+ {[%clk 0:00:03]}  Ke6 {[%clk 0:00:05]} 87. Rf1 {[%clk 0:00:03]}  Rd7+ {[%clk 0:00:06]} 88. Kb6 {[%clk 0:00:04]}  Bd4+ {[%clk 0:00:06]} 89. Kb5 {[%clk 0:00:04]}  Ke5 {[%clk 0:00:07]} 90. Bc6 {[%clk 0:00:04]}  Rh7 {[%clk 0:00:06]} 91. Re1+ {[%clk 0:00:05]}  Kd6 {[%clk 0:00:07]} 92. Rd1 {[%clk 0:00:05]}  Ke5 {[%clk 0:00:07]} 93. Bb7 {[%clk 0:00:05]}  Ba7 {[%clk 0:00:07]} 94. Kc4 {[%clk 0:00:05]}  Ke6 {[%clk 0:00:07]} 95. Re1+ {[%clk 0:00:05]}  Kd6 {[%clk 0:00:08]} 96. Rd1+ {[%clk 0:00:05]}  Kc7 {[%clk 0:00:08]} 97. Be4 {[%clk 0:00:04]}  Kb8 {[%clk 0:00:08]} 98. Bxh7 {[%clk 0:00:04]} 1-0


[Site "https://www.chess.com"]

[Event "Titled Tuesday Blitz February 07 Late 2023"]
[White "Ramirez, Alejandro"]
[Black "Dubov, Daniil"]
[WhiteFideId "6500617"]
[BlackFideId "24126055"]
[WhiteElo "2572"]
[BlackElo "2708"]
[Result "0-1"]
[Round "07"]
[TimeControl "180+2"]
[Date "2023.02.07"]
[WhiteClock "0:00:12"]
[BlackClock "0:00:03"]

1. e4 {[%clk 0:03:00]}  c5 {[%clk 0:02:48]} 2. d4 {[%clk 0:03:01]}  cxd4 {[%clk 0:02:48]} 3. Qxd4 {[%clk 0:03:02]}  Nc6 {[%clk 0:02:46]} 4. Qd3 {[%clk 0:03:02]}  Nf6 {[%clk 0:02:42]} 5. Nc3 {[%clk 0:03:03]}  e5 {[%clk 0:02:36]} 6. Nf3 {[%clk 0:02:54]}  Bb4 {[%clk 0:02:34]} 7. Bd2 {[%clk 0:02:35]}  O-O {[%clk 0:02:30]} 8. a3 {[%clk 0:02:36]}  Bxc3 {[%clk 0:02:28]} 9. Bxc3 {[%clk 0:02:36]}  d5 {[%clk 0:02:29]} 10. Nxe5 {[%clk 0:02:24]}  Nxe4 {[%clk 0:02:18]} 11. Nxc6 {[%clk 0:02:02]}  bxc6 {[%clk 0:02:19]} 12. Be2 {[%clk 0:02:02]}  Nxc3 {[%clk 0:01:59]} 13. Qxc3 {[%clk 0:02:02]}  Re8 {[%clk 0:01:43]} 14. Kf1 {[%clk 0:02:02]}  Bf5 {[%clk 0:01:24]} 15. Re1 {[%clk 0:01:53]}  d4 {[%clk 0:01:12]} 16. Qd2 {[%clk 0:01:53]}  Qd5 {[%clk 0:00:59]} 17. h4 {[%clk 0:01:42]}  Re5 {[%clk 0:00:44]} 18. Bd3 {[%clk 0:01:31]}  Bxd3+ {[%clk 0:00:24]} 19. cxd3 {[%clk 0:01:32]}  Rae8 {[%clk 0:00:24]} 20. Rxe5 {[%clk 0:01:26]}  Rxe5 {[%clk 0:00:25]} 21. Rh3 {[%clk 0:01:11]}  h5 {[%clk 0:00:24]} 22. Rg3 {[%clk 0:01:03]}  c5 {[%clk 0:00:23]} 23. Kg1 {[%clk 0:00:48]}  g6 {[%clk 0:00:22]} 24. Qf4 {[%clk 0:00:47]}  Qe6 {[%clk 0:00:21]} 25. Kh2 {[%clk 0:00:43]}  Kg7 {[%clk 0:00:15]} 26. b4 {[%clk 0:00:41]}  Rf5 {[%clk 0:00:14]} 27. Qd2 {[%clk 0:00:38]}  cxb4 {[%clk 0:00:10]} 28. axb4 {[%clk 0:00:37]}  Qf6 {[%clk 0:00:10]} 29. Kg1 {[%clk 0:00:33]}  Qxh4 {[%clk 0:00:10]} 30. Qa2 {[%clk 0:00:33]}  Re5 {[%clk 0:00:07]} 31. Rh3 {[%clk 0:00:15]}  Qe7 {[%clk 0:00:06]} 32. Qb2 {[%clk 0:00:11]}  Re1+ {[%clk 0:00:07]} 33. Kh2 {[%clk 0:00:12]}  Qe5+ {[%clk 0:00:07]} 34. g3 {[%clk 0:00:13]}  Qd5 {[%clk 0:00:04]} 35. f3 {[%clk 0:00:11]}  Qxf3 {[%clk 0:00:04]} 36. Qxd4+ {[%clk 0:00:11]}  Kh7 {[%clk 0:00:03]} 37. Rxh5+ {[%clk 0:00:12]}  Qxh5+ {[%clk 0:00:03]} 0-1


[Site "https://www.chess.com"]